Cogmind - Beta 15 @@@ ROGUE MODE // 2025.05.13 @ 23:24:34 Player: Skysub Result: Smashed by cave-in Performance ------------- Evolutions (0) 0 Regions Visited (2) 400 Robots Destroyed (23) 115 Value Destroyed (455) 455 Prototype IDs (0) 0 Alien Tech Used (0) 0 Bonus (25) 25 TOTAL SCORE: 995 Bonus ------- Follower Combat Kills 25 Cogmind --------- Core Integrity 0/250 Matter 285/300 Energy 158/160 System Corruption 12% Temperature Cool (0) Movement Rolling (115) Ox1 Location -10/Mines Parts ------- > --- POWER (1) -------- Light Nuclear Core > --- PROPULSION (2) --- Compact Wheel > --- UTILITY (2) ------ Large Storage Unit > --- WEAPON (2) ------- (None) > --- INVENTORY (15) --- Light Nuclear Core Aluminum Leg Wheel Improved Heat Sink Small Storage Unit Visual Processing Unit Improved Terrain Scanner Small Laser Light Assault Rifle Grenade Launcher Hammer Peak State ------------ > --- POWER ------------ Light Nuclear Core > --- PROPULSION ------- Wheel Wheel > --- UTILITY ---------- Small Storage Unit Improved Terrain Scanner > --- WEAPON ----------- Medium Laser Light Assault Rifle > --- INVENTORY -------- Ion Engine Ion Engine Aluminum Leg Visual Processing Unit Grenade Launcher Datajack Mining Laser [Rating: 11] Favorites ----------- Power Light Nuclear Core Engine Ion Engine Power Core Light Nuclear Core Propulsion Compact Wheel Wheel Compact Wheel Utility Structural Scanner Device Structural Scanner Storage Small Storage Unit Weapon Light Assault Rifle Energy Gun Small Laser Ballistic Gun Light Assault Rifle Launcher Grenade Launcher Build | -11 -10 -10 ------- Run | Yrd Mat Min Slots Evolved . | . . . Power . | . . . Propulsion . | . . . Utility . | . . . Weapon . | . . . Parts Attached 22 | 7 13 2 Power 4 | 1 2 1 Engine 2 | 1 1 . Core 2 | . 1 1 Reactor . | . . . Propulsion 7 | 2 5 . Treads . | . . . Leg . | . . . Wheel 7 | 2 5 . Hover . | . . . Flight . | . . . Utility 4 | 2 2 . Device 2 | 1 1 . Storage 2 | 1 1 . Processor . | . . . Hackware . | . . . Protection . | . . . Artifact . | . . . Weapon 7 | 2 4 1 Energy Gun 3 | . 3 . Energy Cannon . | . . . Ballistic Gun 3 | 2 1 . Ballistic Cannon . | . . . Launcher 1 | . . 1 Special Weapon . | . . . Impact Weapon . | . . . Slashing Weapon . | . . . Piercing Weapon . | . . . Special Melee Weapon . | . . . Unidentified Prototypes . | . . . Parts Lost 11 | . 7 4 Power 1 | . 1 . Propulsion 4 | . 3 1 Utility 1 | . . 1 Weapon 5 | . 3 2 Highest Loss Streak 3 | . 3 3 To Critical Strikes . | . . . Average Backups 7 | 3 7 10 Power . | . 1 1 Propulsion 1 | 1 1 2 Utility 2 | . 1 3 Weapon 2 | . 2 4 Tool/Special . | . . . Unused Backups 13 | 1 4 8 Power 2 | . . 2 Propulsion 4 | 1 2 1 Utility 2 | . . 2 Weapon 4 | . 1 3 Tool/Special 1 | . 1 . Average Slot Usage (%) 96 | . 97 93 Engine 4 | . 6 1 Core 8 | . 7 12 Wheel 27 | . 26 28 Device 12 | . 14 8 Storage 14 | . 14 14 Energy Gun 8 | . 12 . Ballistic Gun 15 | . 15 14 Launcher 3 | . . 14 Peak Build Rating 11 | 9 11 10 Average Rating 8 | 5 9 9 On Entrance 5 | . 9 8 Naked Turns . | . . . Heaviest Build 30 | 14 28 30 Greatest Support 32 | 26 32 32 Greatest Overweight (x) 2 | 1 2 . Average Overweight (x) . | . . . Largest Inventory Capacity 15 | 8 15 15 Average Capacity 11 | 7 10 15 Most Carried 11 | 7 10 11 Average Carried 7 | 3 7 10 Final Capacity 15 | 8 15 15 Final Carried 11 | 6 10 11 Class Distribution -------------------- 60% | Mutant 39% | Scavenger-Mutant Dominant Class ---------------- Scavenger-Mutant | -10/Materials Mutant | -10/Mines Resources | -11 -10 -10 ----------- Run | Yrd Mat Min Matter Collected 605 | 203 331 71 Remotely . | . . . Salvage Created 873 | 48 688 137 Parts 44 | 4 34 6 Haulers Intercepted 1 | . 1 . Recyclers Shooed 4 | . 4 . Parts Field Recycled . | . . . Retrieved Matter . | . . . Parts Self-Destructed . | . . . Prevented . | . . . Kills | -11 -10 -10 ------- Run | Yrd Mat Min Combat Hostiles Destroyed 14 | . 11 3 Guns 11 | . 10 1 AOE 2 | . . 2 Classes Destroyed 7 | 1 6 . Builder 1 | . 1 . Tunneler 2 | 2 . . Hauler 1 | . 1 . Recycler 3 | . 3 . Watcher 2 | . 2 . Swarmer 6 | . 6 . Grunt 8 | . 5 3 Best Kill Streak 6 | 1 6 2 Combat Bots Only 3 | . 3 2 Max Kills in Single Turn 2 | 1 1 2 Gunslinging . | . . . Exploded 2 | . . 2 Melee . | . . . Uniques/NPCs Destroyed . | . . . Combat | -11 -10 -10 -------- Run | Yrd Mat Min Hostile Shots Fired 105 | . 93 12 Missed 23 | . 19 4 Hits 82 | . 74 8 Projectile 82 | . 74 8 Critical Strikes 1 | . 1 . Damage Taken 1309 | . 829 480 Core 282 | . 185 97 Absorbed by Shields . | . . . Regen/Repaired (Parts) 1 | . 1 . Core Remaining (%) 100 | 100 . . Volleys Fired 98 | 6 73 19 Largest 2 | 2 2 2 Hottest 115 | 40 115 50 Shots Fired 173 | 12 140 21 Gun 168 | 12 140 16 Cannon . | . . . Launcher 5 | . . 5 Special . | . . . Kinetic 128 | 12 100 16 Thermal 40 | . 40 . Explosive 5 | . . 5 Electromagnetic . | . . . Robot Hit Streak 9 | 4 9 4 Robot Miss Streak 4 | 4 4 1 Penetration Max . | . . . Secondary Targets 1 | . 1 . Max Gunslinging Chain 1 | . 1 . Shots Hit Robots 95 | 6 77 12 Core Hits 44 | 4 32 8 Critical Kills 1 | . 1 . Critical Parts Destroyed . | . . . Critical Strikes 8 | . 8 . Burn 7 | . 7 . Destroy 1 | . 1 . Melee Attacks . | . . . Impact . | . . . Slashing . | . . . Piercing . | . . . Sneak Attacks . | . . . Combat Hostiles . | . . . Follow-up Attacks . | . . . Damage Inflicted 1222 | 65 912 245 Guns 1049 | 65 912 72 Cannons . | . . . Explosions 173 | . . 173 Melee . | . . . Ramming . | . . . Kinetic 719 | 65 582 72 Thermal 330 | . 330 . Explosive 173 | . . 173 Electromagnetic . | . . . Impact . | . . . Slashing . | . . . Piercing . | . . . Highest Corruption . | . . . Average Corruption . | . . . Corruption Purged . | . . . Corruption Blocked . | . . . Overload Shots . | . . . Overflow Damage . | . . . Projectiles . | . . . Explosions . | . . . Melee . | . . . Knockbacks . | . . . Impact . | . . . Kinetic . | . . . Secondary . | . . . Self-Inflicted Damage 11 | . . 11 Shots 1 | . . 1 Rammed . | . . . Targets Rammed . | . . . Kicked . | . . . Crushed . | . . . Highest Temperature 266 | . 266 23 Average Temperature 77 | . 84 7 Received Heat Transfer 330 | . 264 66 Effects 2 | . 2 . Interference 2 | . 2 . Siege Activations . | . . . Martial Activations . | . . . Shielding Activations . | . . . Robots Disrupted . | . . . Combat Hostiles . | . . . Robots Corrupted . | . . . Combat Hostiles . | . . . Parts Fried . | . . . Impact Corruptions . | . . . Robots Melted 2 | . 2 . Combat Hostiles 1 | . 1 . Parts Melted . | . . . Heat Transferred 1408 | . 1408 . Parts Sabotaged . | . . . Parts Stolen . | . . . Parts Stripped . | . . . Power Chain Reactions . | . . . Alert | -11 -10 -10 ------- Run | Yrd Mat Min Maximum Alert Level . | . . . Low Security (%) 100 | 100 100 100 Level 1 . | . . . Level 2 . | . . . Level 3 . | . . . Level 4 . | . . . Level 5 . | . . . High Security . | . . . Max Security . | . . . Peak Influence 103 | 5 103 70 Initial 12 | . . 12 Average 44 | . 58 29 Influence Increases 550 | 10 406 134 Destroy 0b10 Robot/C 300 | . 220 80 Destroy 0b10 Robot/NC 45 | 10 35 . Destroy Leader 76 | . 56 20 Allied During Kill 3 | . . 3 Successful Hack 35 | . 35 . Select Force Hacks 60 | . 60 . Destroy Structure 31 | . . 31 Influence Decreases 550 | 10 374 166 Entered New Map 20 | . . 20 Time Decay 444 | 10 304 130 Lost Part 77 | . 70 7 Lost Ally 9 | . . 9 Squads Dispatched 4 | . 4 . Investigation 4 | . 4 . Extermination . | . . . Reinforcement . | . . . Assault . | . . . Garrison . | . . . Intercept . | . . . Searches Triggered . | . . . Construction Impeded . | . . . Haulers Reinforced . | . . . Active Scanning Responses . | . . . Cargo Convoy Interrupts . | . . . Stealth | -11 -10 -10 --------- Run | Yrd Mat Min Distress Signals 4 | . 2 2 Communications Jammed . | . . . Distress Signals . | . . . Times Spotted 22 | . 17 5 Peak Tracking Total 5 | . 5 3 Tactical Retreats . | . . . Traps | -11 -10 -10 ------- Run | Yrd Mat Min Traps Triggered 4 | . 4 . Indirectly . | . . . Trap Hack Attempts . | . . . Triggered . | . . . Disarmed . | . . . Reprogrammed 2 | . 2 . Reused . | . . . Traps Extracted . | . . . Installed . | . . . Triggered . | . . . Machines | -11 -10 -10 ---------- Run | Yrd Mat Min Machines Disabled . | . . . Max in Single Turn . | . . . Machines Repaired . | . . . Machines Dismantled . | . . . Machines Sabotaged . | . . . Overloaded Fab Kills . | . . . Hacking | -11 -10 -10 --------- Run | Yrd Mat Min Machines Accessed 10 | . 10 . Terminals 7 | . 7 . Fabricators . | . . . Repair Stations 1 | . 1 . Recycling Units 2 | . 2 . Scanalyzers . | . . . Garrison Access . | . . . Total Hacks 32 | . 32 . Successful 20 | . 20 . Failed 12 | . 12 . Catastrophic . | . . . Database Lockouts . | . . . Manual 23 | . 23 . Terminals 24 | . 24 . Fabricators . | . . . Repair Stations 1 | . 1 . Recycling Units 7 | . 7 . Scanalyzers . | . . . Garrison Access . | . . . Terminal Hacks 6 | . 6 . Branch Access Points 1 | . 1 . Alert Level 2 | . 2 . Reprogram Traps 1 | . 1 . Investigation Status 1 | . 1 . Zone Layout 1 | . 1 . Fabricator Hacks . | . . . Repair Station Hacks . | . . . Recycling Unit Hacks 4 | . 4 . Report Inventory 2 | . 2 . Retrieve Matter 1 | . 1 . Retrieve Components 1 | . 1 . Scanalyzer . | . . . Garrison Access Hacks . | . . . Unauthorized Hacks 10 | . 10 . Terminals 7 | . 7 . Botnet 7 | . 7 . Fabricators . | . . . Repair Stations 1 | . 1 . Patch 1 | . 1 . Recycling Units 2 | . 2 . Tunnel 2 | . 2 . Scanalyzers . | . . . Garrison Access . | . . . Data Cores Recovered . | . . . Used . | . . . Hacking Detections 9 | . 9 . Full Trace Events . | . . . Feedback Events . | . . . Feedback Blocked . | . . . Robot Schematics Acquired . | . . . Robots Built . | . . . Authchips . | . . . Time . | . . . Total Robot Build Rating . | . . . Part Schematics Acquired . | . . . Parts Built . | . . . Authchips . | . . . Time . | . . . Total Part Build Rating . | . . . Parts Repaired . | . . . Time . | . . . Parts Recycled . | . . . Recycled Matter . | . . . Retrieved Matter 78 | . 78 . Retrieved Components 9 | . 9 . Parts Scanalyzed . | . . . Part Schematics Acquired . | . . . Parts Damaged . | . . . Bothacking | -11 -10 -10 ------------ Run | Yrd Mat Min Used RIF Installer . | . . . Robots Hacked . | . . . Non-combat . | . . . Combat . | . . . Robot Hacks Applied . | . . . Relay Couplers Released . | . . . Fabnet Peak Effective % . | . . . Robots Rewired . | . . . Allies Hacked . | . . . Hacks Repelled . | . . . Allies | -11 -10 -10 -------- Run | Yrd Mat Min Total Allies 1 | . . 1 Largest Group 1 | . . 1 Highest-Rated Group 31 | . . 31 Highest-Rated Ally 31 | . . 31 Total Orders . | . . . Ally Attacks 11 | . . 11 Total Damage 123 | . . 123 Kills 2 | . . 2 Allies Corrupted . | . . . Allies Melted . | . . . Intel | -11 -10 -10 ------- Run | Yrd Mat Min Active Infowar (turns) 798 | 13 635 150 Terrain 245 | 13 232 . Structural 553 | . 403 150 Robot Analysis Total . | . . . Derelict Logs Recovered . | . . . Drone Launches . | . . . Drone Recoveries . | . . . Exploration | -11 -10 -10 ------------- Run | Yrd Mat Min Turns Passed 1161 | 136 756 269 Spaces Moved 853 | 106 521 226 Core 2 | 2 . . Treads . | . . . Legs . | . . . Wheels 851 | 104 521 226 Hover . | . . . Flight . | . . . Fastest Speed 50 | 50 80 100 Average Speed 93 | 89 91 100 Slowest Speed 115 | 100 115 100 Overloaded Moves . | . . . Propulsion Burnouts . | . . . Robots Hopped . | . . . Potential Cave-ins 2 | . . 2 Cave-ins Triggered 1 | . . 1 Exploration Rate (%) 49 | 5 88 56 Regions Visited 2 Branch Regions 1 Pre-discovered Areas 3 | . 2 1 Known Exits Taken 1 | . 1 . Unknown Exits Taken 1 | 1 . . Scrap Searched . | . . . Spaces Dug 27 | . . 27 Terrain Destroyed 42 | . . 42 Melee . | . . . Projectile . | . . . AOE 42 | . . 42 Terrain Rammed . | . . . Walls Destroyed . | . . . Machines Disabled . | . . . Actions | -11 -10 -10 --------- Run | Yrd Mat Min Total 1054 | 133 671 250 Wait 56 | 5 50 1 Move 850 | 105 520 225 Hop . | . . . Pick Up 20 | 9 9 2 Fast Attach 10 | 5 5 . Attach 5 | 2 3 . Detach 1 | . 1 . Swap 7 | . 5 2 Drop 7 | 1 5 1 Fire 98 | 6 73 19 Melee . | . . . Ram . | . . . Kick . | . . . Crush . | . . . Escape Stasis . | . . . Rewire . | . . . Trap . | . . . Miscellaneous . | . . . Route ------- -11/Scrapyard -10/Materials (discovered 3 exits: [*Mat x2] / *Min) -10/Mines (discovered 2 exits: [*Mat] / [*Sub]) History --------- Turn | Location | Event 28 | -11/Scrapyard | Discovered new exit (range 14) 137 | -11/Scrapyard | Entered Materials 387 | -10/Materials | Lost 3 parts (2n1w) 412 | -10/Materials | Identified exit to Mines 449 | -10/Materials | Core integrity fell below 50% 511 | -10/Materials | Discovered new exit (range 5) 590 | -10/Materials | Discovered new exit (range 16) 893 | -10/Materials | Entered Mines 910 | -10/Mines | Escorted by a lone wolf Derelict 930 | -10/Mines | Learned location of Storage (-7) 934 | -10/Mines | Discovered new exit (range 8) 1009 | -10/Mines | Discovered new exit (range 6) 1142 | -10/Mines | Assembled infested the area 1162 | -10/Mines | Crushed by falling debris 1162 | -10/Mines | Smashed by cave-in Last Messages --------------- R-06 Scavenger collects Ion Engine. R-06 Scavenger collects Particle Gun. A derelict is hurriedly installing traps. AJ-1XA(g): "Hehe, this'll put a wrench in their mining defense operations..." AJ-1XA(g) slips into the shadows. K-01 Serf collects debris. ALERT: Infestation in the mines, dispatching Demolisher response squad. K-01 Serf collects debris. QI-BBU(g): "Mission, incomplete...*fzzt*" QI-BBU(g) destroyed. The unstable cave ceiling collapses. Crushed by falling debris. Grenade Launcher destroyed. System corrupted by crushing effect (+4). Lgt. Assault Rifle destroyed. System corrupted by crushing effect (+5). Com. Wheel destroyed. System corrupted by crushing effect (+3). Map ----- +----------------------------------------------------+ | ??## ###??## ##???????????????????? | | ??## ##?## ^ #####???????????????? | | ??## #### #???????????????? | | ??## #### # ^#???????????????? | | ??## ##### # ^#???????????????? | | ?### ###?# # #???????????????? | | ?### """ ###?# ^## #???????????????? | | ?## """ ##?# ^ #???????????????? | | ?## """ ##?# ####???????????????? | | ?## #### ###### ##??????????????????? | | ?## #### #????## ##??????????????????? | | ?## ### ####### ##?????????????????? | | ?## ##### ## #?????????????????? | | ?## ###### ###### #????????????????? | | ?## ##??## ###### ##??????????????"" | | ?## ####### #####???????????????"" | | ?## ####### #?????????????????? | | ?## ##?## ###### #????????????????? | | ?## ##?########?# ####?????????????# | | ?##### ##??????????# ###?????????## | | ?##### ##???????#### #####???## | | ????## ##?########### ## ##?## ?? | | ????## ########### # ### % #?????? | | ????## ##### # * = #??????? | | ????## #### ## ##??????? | | ???### ### @ ### ##???????? | | ???### ## #### ### ##?## ##????????? | | ???## ####### ######??## #?????????? | | ???## = ########+ ###????## #?????????? | | ???## =%* ####??## ##????# #?????????? | | ???###% ###??### ##??# #????????? | | ???### ###???#### ##?# #????????? | | ????#########???##< #####?# #????????? | | ????########????#########?# ##????????? | | ????????????????######????## ##?????????? | | ???????????????????????????## ##??????????? | | ????????????????????????????#######???????????? | | ??????????????????????????????????????????????? | | ??????????????????????????????????????????????? | | ??????????????????????????????????????????????? | | ??????????????????????????????????????????????? | | | | | | | | | | | | | | | | | | | +----------------------------------------------------+ Best States ------------- Heat Dissipation 25 Energy Generation 14 Energy Capacity 250 Matter Stores 300 Matter Capacity 300 Sight Range 16 Terrain Scan Range 16 Terrain Scan Density 10 Evasion (%) 44 Item Schematics ----------------- None Robot Schematics ------------------ None Fabricated ------------ Nothing Repaired ---------- Nothing Alien Tech Used ----------------- None Achievements -------------- None Challenges ------------ None Game ------ Seed FieldGrenadeSabre Manual? 0 Play Time 00:17:52 Cumulative 81.5 hours Start 2025.05.13 @ 22:31:16 End 2025.05.13 @ 23:24:34 Sessions 1 Manual Loads 0 Difficulty Rogue Special Mode None Game No. 77 Rogue 77 Adventurer 0 Explorer 0 Win Type - Total 1 Types 1/0/0/0/0/0/0/0/0/0 Lore% 46 Gallery% 49 Achievement% 44 Wizard Run 0 Options --------- Layout 1 ASCII 0 Keyboard 1 Movement Numpad Keybinds 0 Fullscreen 1 Font 32/SmallcapsGlow Map View 50x35 Zoom Use 0% Tactical HUD 0 Map Filters NONE Filters NONE Steam 1 RUN: c03aa4d7-afe8-411f-80ff-633757abeb99